fUST/lending_fUST_20260130
["ID","MTS","AMOUNT","RATE_DAILY","PERIOD"]
[404034595,1769769032797,-501.30398043,0.00013273,2]
[404034597,1769769032807,-500.0,0.00013273,2]
[404034599,1769769032816,-504.58587945,0.00013273,2]
[404034600,1769769032825,-504.36727375,0.00013273,2]
[404034601,1769769032834,-506.01707851,0.00013273,2]
[404034602,1769769032844,-500.84193602,0.00013273,2]
[404034604,1769769032858,-500.46486142,0.00013273,2]
[404034606,1769769032868,-500.0,0.00013273,2]
[404034607,1769769032878,-503.17437249,0.00013273,2]
[404034608,1769769032889,-500.52410142,0.00013273,2]
[404034609,1769769032899,-500.90147035,0.00013273,2]
[404034610,1769769032909,-500.6294263,0.00013273,2]
[404034611,1769769032917,-602.34025745,0.00013273,2]
[404034612,1769769032931,-500.98228606,0.00013273,2]
[404034613,1769769032941,-501.0748173,0.00013273,2]
[404034614,1769769032950,-500.0,0.00013273,2]
[404034615,1769769032959,-502.98054822,0.00013273,2]
[404034616,1769769032968,-500.0,0.00013273,2]
[404034617,1769769032977,-501.55276249,0.00013273,2]
[404034619,1769769032986,-501.02853559,0.00013273,2]
[404034621,1769769032995,-500.38548006,0.00013273,2]
[404034623,1769769033004,-500.0,0.00013273,2]
[404034625,1769769033013,-507.14889108,0.00013273,2]
[404034626,1769769033024,-500.5843316,0.00013273,2]
[404034628,1769769033034,-500.42745581,0.00013273,2]
[404034630,1769769033043,-919.95749453,0.000135,2]
[404034632,1769769033052,-600.0,0.00013533,2]
[404034634,1769769033061,-500.0,0.00013547,2]
[404034636,1769769033070,-1041.66666667,0.00013642,2]
[404034637,1769769033080,-1020.2442579,0.00013649,2]
[404034638,1769769033089,-300.0,0.00013673,2]
[404034639,1769769033098,-1000.0,0.00013699,2]
[404034641,1769769033107,-500.0,0.00013699,2]
[404034643,1769769033116,-500.0,0.00013821,2]
[404034645,1769769033126,-526.15004826,0.00013821,2]
[404034646,1769769033136,-181.45617541,0.00014094,2]
[404034647,1769769033145,-187.15794216,0.00014094,2]
[404034648,1769769033154,-628.62423188,0.00014095,2]
[404034649,1769769033163,-343.51062108,0.00014247,2]
[404034650,1769769033172,-919.421,0.00014417,2]
[404034651,1769769033181,-300.207,0.00014417,2]
[404034652,1769769033190,-475.0,0.00014417,2]
[404034653,1769769033200,-475.0,0.00014417,2]
[404034654,1769769033209,-475.0,0.00014417,2]
[404034655,1769769033218,-475.0,0.00014417,2]
[404034656,1769769033227,-475.0,0.00014417,2]
[404034657,1769769033236,-475.0,0.00014417,2]
[404034658,1769769033245,-187.78006525,0.00014545,2]
[404034659,1769769033254,-2487.15318209,0.00014545,2]
[404034660,1769769033263,-194.72792766,0.00014545,2]
[404034661,1769769033272,-201.93286099,0.00014545,2]
[404034662,1769769033281,-209.40437684,0.00014545,2]
[404034663,1769769033290,-217.15233878,0.00014545,2]
[404034664,1769769033299,-225.18697532,0.00014545,2]
[404034665,1769769033308,-233.51889341,0.00014545,2]
[404034666,1769769033317,-242.15909246,0.00014545,2]
[404034667,1769769033326,-251.11897888,0.00014545,2]
[404034668,1769769033335,-260.4103811,0.00014545,2]
[404034669,1769769033345,-270.0455652,0.00014545,2]
[404034670,1769769033354,-280.03725112,0.00014545,2]
[404034671,1769769033363,-290.39862941,0.00014545,2]
[404034672,1769769033371,-301.1433787,0.00014545,2]
[404034673,1769769033381,-500.0,0.00014545,2]
[404034674,1769769033391,-2926.93933025,0.00014876,7]
[404034675,1769769033401,-2792.25598059,0.00014876,7]
[404034676,1769769033410,-720.0,0.00014886,2]
[404034677,1769769033419,-3368.40999772,0.00015005,2]
[404034678,1769769033428,-500.0,0.00015036,2]
[404034679,1769769033437,-2579.17784983,0.00015093,2]
[404034680,1769769033446,-190.1686076,0.000151,2]
[404034681,1769769033456,-500.0,0.00015173,2]
[404034682,1769769033465,-177.0,0.00015268,2]
[404034683,1769769033474,-500.0,0.00015293,2]
[404034684,1769769033484,-500.0,0.00015293,2]
[404034685,1769769033493,-5960.20969201,0.000153,2]
[404034686,1769769033503,-603.6044869,0.000153,2]
[404034687,1769769033512,-500.0,0.00015302,2]
[404034688,1769769033520,-500.0,0.00015302,2]
[404034689,1769769033529,-500.0,0.00015309,2]
[404034690,1769769033538,-2130.03879854,0.0001531,2]
[404034691,1769769033549,-3328.18562272,0.0001531,2]
[404034692,1769769033558,-3757.66624035,0.0001531,2]
[404034693,1769769033567,-500.0,0.0001531,2]
[404034694,1769769033576,-500.0,0.0001531,2]
[404034695,1769769033585,-506.84280019,0.0001531,2]
[404034696,1769769033595,-2669.13542489,0.0001531,2]
[404034977,1769769045270,-500.0,0.00012238,2]
[404034978,1769769045280,-500.0,0.00012238,2]
[404034980,1769769045290,-500.0,0.00012238,2]
[404034981,1769769045299,-500.0,0.00012238,2]
[404034982,1769769045308,-500.0,0.00012238,2]
[404034983,1769769045318,-500.0,0.00012238,2]
[404034984,1769769045327,-500.0,0.00012238,2]
[404034985,1769769045337,-500.0,0.00012238,2]
[404034986,1769769045346,-500.0,0.00012238,2]
[404034987,1769769045356,-500.0,0.00012238,2]
[404034988,1769769045365,-153.5799131,0.00012238,2]
[404034989,1769769045375,-500.0,0.00012238,2]
[404034990,1769769045384,-500.0,0.00012238,2]
[404034991,1769769045394,-500.0,0.00012238,2]
[404034992,1769769045403,-500.0,0.00012238,2]
[404034993,1769769045413,-500.0,0.00012238,2]
[404034994,1769769045422,-464.82691558,0.00012238,2]
[404034995,1769769045431,-500.0,0.00012238,2]
[404034996,1769769045440,-500.0,0.00012238,2]
[404034997,1769769045449,-500.0,0.00012238,2]
[404034998,1769769045458,-500.0,0.00012238,2]
[404034999,1769769045469,-690.05978311,0.0001531,2]
[404035000,1769769045478,-2520.0467642,0.0001531,2]
[404035001,1769769045487,-181.1976283,0.0001531,2]
[404035002,1769769045496,-500.0,0.0001531,2]
[404035003,1769769045506,-500.0,0.0001531,2]
[404035004,1769769045515,-500.0,0.0001531,2]
[404035005,1769769045524,-536.84962304,0.0001531,2]
[404035006,1769769045536,-25958.46882171,0.00015311,2]
[404035007,1769769045547,-721.90384613,0.00015311,2]
[404035010,1769769046510,-2916.02413821,0.00015311,2]
[404035011,1769769046621,-879.9514622,0.00015311,2]
[404035016,1769769189628,500.0,0.00034725,120]
[404035017,1769769189958,500.0,0.00034725,120]
[404035018,1769769190235,500.0,0.00034725,120]
[404035019,1769769190475,500.0,0.00034725,120]
[404035020,1769769190728,500.0,0.00034725,120]
[404035021,1769769191058,368.96965599,0.00034725,120]
[404035034,1769770047129,-161.53462202,0.00012705,2]
[404035035,1769770047148,-526.15004826,0.00013273,2]
[404035036,1769770047167,-178.51822719,0.00013273,2]
[404035037,1769770047187,-150.0,0.00013388,2]
[404035038,1769770047206,-526.987566,0.00014092,2]
[404035039,1769770047224,-382.5284904,0.00014178,2]
[404035040,1769770047244,-300.0,0.00014335,2]
[404035041,1769770047263,-1008.49479958,0.00014336,2]
[404035049,1769770232491,-152.76,0.0001,2]
[404035050,1769770232501,-245.24,0.00013273,2]
[404035056,1769770232543,-57.81218116,0.00013273,2]
[404035058,1769770232553,-3784.89781884,0.00014336,2]
[404035060,1769770232564,-1864.82372795,0.00014336,2]
[404035062,1769770232575,-4845.59411743,0.00014336,2]
[404035064,1769770232585,-150.0,0.0001444,2]
[404035066,1769770232594,-2487.15318209,0.00014545,2]
[404035068,1769770232604,-231.1152422,0.00014868,2]
[404035070,1769770232614,-167.2444815,0.00014868,2]
[404035072,1769770232623,-1041.66666667,0.00014971,2]
[404035073,1769770232633,-2245.60666515,0.00015005,2]
[404035074,1769770232642,-2579.17784983,0.00015093,2]
[404035075,1769770232652,-2624.45506916,0.00015158,2]
[404035076,1769770232660,-153.0,0.000152,2]
[404035077,1769770232672,-310.07058169,0.00015295,2]
[404035078,1769770232681,-187.78006525,0.00015302,2]
[404035079,1769770232691,-194.72792766,0.00015302,2]
[404035080,1769770232700,-201.93286099,0.00015302,2]
[404035081,1769770232710,-209.40437684,0.00015302,2]
[404035082,1769770232718,-217.15233878,0.00015302,2]
[404035083,1769770232727,-225.18697532,0.00015302,2]
[404035084,1769770232737,-233.51889341,0.00015302,2]
[404035085,1769770232746,-242.15909246,0.00015302,2]
[404035086,1769770232755,-251.11897888,0.00015302,2]
[404035087,1769770232764,-260.4103811,0.00015302,2]
[404035088,1769770232773,-270.0455652,0.00015302,2]
[404035089,1769770232783,-280.03725112,0.00015302,2]
[404035090,1769770232792,-290.39862941,0.00015302,2]
[404035091,1769770232801,-301.1433787,0.00015302,2]
[404035092,1769770232810,-239.28665701,0.0001531,2]
[404035093,1769770232820,-384.9807684,0.0001531,2]
[404035094,1769770232829,-500.0,0.0001531,2]
[404035095,1769770232839,-500.0,0.0001531,2]
[404035096,1769770232848,-500.0,0.0001531,2]
[404035097,1769770232858,-500.0,0.0001531,2]
[404035098,1769770232867,-500.0,0.0001531,2]
[404035099,1769770232876,-500.0,0.0001531,2]
[404035100,1769770232885,-238.39802044,0.0001531,2]
[404035101,1769770232894,-500.0,0.0001531,2]
[404035102,1769770232904,-500.0,0.0001531,2]
[404035103,1769770232913,-500.0,0.0001531,2]
[404035104,1769770232923,-500.0,0.0001531,2]
[404035105,1769770232933,-500.0,0.0001531,2]
[404035106,1769770232942,-500.0,0.0001531,2]
[404035107,1769770232951,-4701.99404535,0.00015311,2]
[404035111,1769770240807,-17996.11557951,0.00015311,2]
[404035144,1769770245313,-14033.81464052,0.00015311,2]
[404035145,1769770245325,-2986.61260594,0.00015311,2]
[404035160,1769770853367,-719.3365564,0.0001427,2]
[404035167,1769771251298,-275.3169375,0.00013571,2]
[404035168,1769771251318,-970.70528068,0.00013708,2]
[404035169,1769771382503,316.8810676,0.00034725,120]
[404035196,1769771439952,-159.62665953,0.00013123,2]
[404035197,1769771439962,-165.40447415,0.00013416,2]
[404035198,1769771439972,-828.0,0.00014895,2]
[404035199,1769771439981,-828.0,0.00014998,2]
[404035200,1769771439990,-828.0,0.00015045,2]
[404035201,1769771439999,-173.3364316,0.00015082,2]
[404035202,1769771440008,-1206.3986822,0.000151,2]
[404035203,1769771440018,-1041.66666667,0.00015118,2]
[404035204,1769771440028,-311.49721765,0.00015124,2]
[404035205,1769771440039,-828.0,0.0001513,2]
[404035206,1769771440050,-828.0,0.00015265,2]
[404035208,1769771440059,-1200.0,0.00015294,2]
[404035210,1769771440068,-828.0,0.00015295,2]
[404035212,1769771440077,-292.0,0.00015297,2]
[404035213,1769771440086,-252.0,0.00015297,2]
[404035214,1769771440095,-780.0,0.000153,2]
[404035215,1769771440105,-906.06079353,0.000153,2]
[404035216,1769771440115,-187.78006525,0.00015302,2]
[404035217,1769771440125,-194.72792766,0.00015302,2]
[404035218,1769771440134,-201.93286099,0.00015302,2]
[404035219,1769771440143,-209.40437684,0.00015302,2]
[404035220,1769771440153,-217.15233878,0.00015302,2]
[404035221,1769771440162,-225.18697532,0.00015302,2]
[404035222,1769771440171,-233.51889341,0.00015302,2]
[404035223,1769771440180,-242.15909246,0.00015302,2]
[404035224,1769771440189,-251.11897888,0.00015302,2]
[404035225,1769771440199,-260.4103811,0.00015302,2]
[404035226,1769771440210,-270.0455652,0.00015302,2]
[404035227,1769771440219,-280.03725112,0.00015302,2]
[404035228,1769771440229,-290.39862941,0.00015302,2]
[404035229,1769771440239,-301.1433787,0.00015302,2]
[404035230,1769771440248,-6885.54334482,0.00015311,2]
[404035231,1769771440258,-1497.0711101,0.00015311,2]
[404035232,1769771440267,-359.85860905,0.00015311,2]
[404035233,1769771440276,-259.21939727,0.00015334,2]
[404035234,1769771440285,-828.0,0.00015345,2]
[404035235,1769771440294,-828.0,0.00015399,2]
[404035236,1769771440303,-195.17727949,0.00015416,2]
[404035237,1769771440312,-828.0,0.00015425,2]
[404035238,1769771440322,-828.0,0.00015445,2]
[404035239,1769771440331,-558.12704704,0.00015512,2]
[404035240,1769771440340,-828.0,0.00015589,2]
[404035241,1769771440350,-828.0,0.00015653,2]
[404035242,1769771440359,-828.0,0.00015722,2]
[404035243,1769771440368,-828.0,0.00015795,2]
[404035244,1769771440379,-828.0,0.00015805,2]
[404035245,1769771440387,-828.0,0.00015846,2]
[404035246,1769771440397,-828.0,0.00015885,2]
[404035247,1769771440406,-828.0,0.00015954,2]
[404035248,1769771440415,-644.59668418,0.00016037,2]
[404035267,1769771443885,-183.40331582,0.00016037,2]
[404035268,1769771443895,-126.32668418,0.00016083,2]
[404035269,1769771443906,-701.67331582,0.00016083,2]
[404035270,1769771443916,-828.0,0.00016103,2]
[404035271,1769771443926,-828.0,0.00016114,2]
[404035272,1769771443936,-713.85369645,0.00016136,7]
[404035273,1769771443946,-828.0,0.00016171,2]
[404035274,1769771443956,-828.0,0.00016201,2]
[404035275,1769771443965,-600.0,0.00016319,2]
[404035276,1769771443975,-153.0,0.00016658,2]
[404035277,1769771443984,-153.0,0.00016658,2]
[404035278,1769771443993,-153.0,0.00016658,2]
[404035279,1769771444004,-153.0,0.00016658,2]
[404035280,1769771444014,-1372.178,0.00016666,2]
[404035281,1769771444023,-2150.0,0.00016666,2]
[404035282,1769771444033,-630.0,0.00016666,2]
[404035283,1769771444042,-173.3364316,0.000168,2]
[404035284,1769771444052,-991.23363554,0.00017207,2]
[404035285,1769771444062,-150.305,0.00017353,2]
[404035286,1769771444071,-150.289,0.00017353,2]
[404035287,1769771444081,-150.205,0.00017353,2]
[404035288,1769771444090,-232.924,0.00017353,2]
[404035289,1769771444100,-245.177,0.00017353,2]
[404035290,1769771444108,-262.104,0.00017353,2]
[404035291,1769771444117,-197.46103731,0.00017353,2]
[404035292,1769771444129,-70.66596269,0.00017353,2]
[404035293,1769771444139,-224.95008484,0.00017416,2]
[404035294,1769771444147,-312.80398383,0.0001747,2]
[404035295,1769771444162,-1262.70776101,0.0001747,2]
[404035306,1769771445945,-2916.02723933,0.0001747,2]
[404035307,1769771445957,-690.80750882,0.0001747,2]
[404035308,1769771445968,-14443.08524007,0.0001747,2]
[404035309,1769771445979,-300.0,0.0001747,2]
[404035310,1769771446048,-874.25259224,0.0001747,2]
[404035311,1769771446102,-2769.49731269,0.0001747,2]
[404035327,1769771952741,1157.0,8.98e-05,2]
[404035339,1769772375501,500.0,0.00034724,120]
[404035340,1769772375733,500.0,0.00034724,120]
[404035341,1769772375992,500.0,0.00034724,120]
[404035342,1769772376370,513.05058072,0.00034724,120]
[404035429,1769772637164,-159.66642619,0.00012808,2]
[404035436,1769772637926,-255.58,0.000131,2]
[404035437,1769772637939,-196.94781884,0.00013273,2]
[404035438,1769772637950,-500.0,0.00013273,2]
[404035439,1769772637960,-500.0,0.00013273,2]
[404035440,1769772637969,-500.0,0.00013273,2]
[404035441,1769772637981,-1041.66666667,0.00013682,2]
[404035442,1769772637990,-188.40638291,0.00014808,2]
[404035443,1769772637999,-263.493783,0.00015043,2]
[404035444,1769772638009,-168.0,0.0001524,2]
[404035445,1769772638018,-154.74263963,0.00015399,2]
[404035446,1769772638030,-145.25736037,0.00015399,2]
[404035447,1769772638039,-2289.91711798,0.000154,2]
[404035448,1769772638050,-4464.86730799,0.000154,2]
[404035892,1769772693632,348.15554006,0.00034724,120]
[404035893,1769772702877,525.50149982,0.00034724,120]
[404035900,1769772870265,579.08348881,0.00034723,120]
[404035902,1769773035955,4000.66740953,0.0003,120]
[404035903,1769773132894,210.425745,0.00034725,120]
[404035904,1769773264305,881.86,0.00034725,120]
[404035905,1769773264521,881.86,0.00034725,120]
[404035906,1769773264808,881.86,0.00034725,120]
[404035907,1769773265041,881.86,0.00034725,120]
[404035908,1769773265300,881.86,0.00034725,120]
[404035909,1769773265542,881.86,0.00034725,120]
[404035910,1769773265758,881.86,0.00034725,120]
[404035911,1769773266019,881.86,0.00034725,120]
[404035912,1769773266237,881.86,0.00034725,120]
[404035913,1769773266465,881.86,0.00034725,120]
[404035914,1769773266723,881.86,0.00034725,120]
[404035915,1769773266980,881.86,0.00034725,120]
[404035916,1769773267237,881.86,0.00034725,120]
[404035917,1769773267493,881.86,0.00034725,120]
[404035918,1769773267740,881.86,0.00034725,120]
[404035919,1769773267980,881.86,0.00034725,120]
[404035920,1769773268237,881.86,0.00034725,120]
[404035921,1769773268480,881.86,0.00034725,120]
[404035922,1769773268808,881.86,0.00034725,120]
[404035923,1769773269048,881.86,0.00034725,120]
[404035924,1769773269280,881.86,0.00034725,120]
[404035925,1769773269626,881.86,0.00034725,120]
[404035926,1769773269740,881.86,0.00034725,120]
[404035927,1769773269980,881.967843,0.00034725,120]
[404036008,1769773633124,-155.89829853,0.0001538,2]
[404036009,1769773633144,-642.0,0.00015383,2]
[404036010,1769773633164,-1200.0,0.00015399,2]
[404036011,1769773633184,-300.0,0.00015399,2]
[404036012,1769773633203,-737.49630139,0.000154,2]
[404036017,1769773773347,199.21865821,0.00034726,120]
[404036049,1769773832151,-534.64380724,0.00015204,2]
[404036055,1769773832206,-398.37482864,0.00015204,2]
[404036057,1769773832215,-1041.66666667,0.00015355,2]
[404036059,1769773832225,-155.78033256,0.00015382,2]
[404036061,1769773832234,-300.0,0.00015399,2]
[404036063,1769773832243,-4217.77629675,0.000154,2]
[404036081,1769773832392,-8424.83107461,0.000154,2]
[404036082,1769773832403,-1000.0,0.00015714,2]
[404036083,1769773832412,-906.0,0.000159,2]
[404036084,1769773832421,-403.15017259,0.00016431,2]
[404036085,1769773832433,-96.84982741,0.00016431,2]
[404036086,1769773832442,-505.97701634,0.00016431,2]
[404036087,1769773832451,-276.20315625,0.00016431,2]
[404036088,1769773832463,-223.79684375,0.00016431,2]
[404036089,1769773832474,-495.06600255,0.00016431,2]
[404036101,1769773838221,-4.93399745,0.00016431,2]
[404036102,1769773838231,-500.0,0.00016431,2]
[404036103,1769773838240,-500.0,0.00016431,2]
[404036104,1769773838250,-500.0,0.00016431,2]
[404036105,1769773838259,-500.0,0.00016431,2]
[404036106,1769773838268,-500.0,0.00016431,2]
[404036107,1769773838278,-500.0,0.00016431,2]
[404036108,1769773838287,-500.0,0.00016431,2]
[404036109,1769773838297,-500.0,0.00016431,2]
[404036110,1769773838310,-500.0,0.00016431,2]
[404036111,1769773838319,-500.0,0.00016431,2]
[404036112,1769773838328,-500.0,0.00016431,2]
[404036113,1769773838338,-320.57303628,0.00016431,2]
[404036114,1769773838350,-179.42696372,0.00016431,2]
[404036115,1769773838359,-500.0,0.00016431,2]
[404036116,1769773838369,-162.14634694,0.00016431,2]
[404036117,1769773838379,-500.0,0.00016431,2]
[404036118,1769773838389,-500.0,0.00016431,2]
[404036119,1769773838398,-319.78250011,0.00016431,2]
[404036120,1769773838408,-455.94018725,0.00016431,2]
[404036121,1769773838419,-44.05981275,0.00016431,2]
[404036122,1769773838429,-500.0,0.00016431,2]
[404036123,1769773838439,-500.0,0.00016431,2]
[404036124,1769773838448,-500.0,0.00016431,2]
[404036125,1769773838458,-500.0,0.00016431,2]
[404036126,1769773838468,-500.0,0.00016431,2]
[404036127,1769773838478,-500.0,0.00016431,2]
[404036128,1769773838489,-500.0,0.00016431,2]
[404036129,1769773838499,-500.0,0.00016431,2]
[404036130,1769773838509,-500.0,0.00016431,2]
[404036131,1769773838519,-500.0,0.00016431,2]
[404036132,1769773838529,-500.0,0.00016431,2]
[404036133,1769773838539,-500.0,0.00016431,2]
[404036134,1769773838548,-272.51844467,0.00016431,2]
[404036141,1769773840427,-227.48155533,0.00016431,2]
[404036142,1769773840438,-500.0,0.00016431,2]
[404036143,1769773840447,-500.0,0.00016431,2]
[404036144,1769773840457,-500.0,0.00016431,2]
[404036145,1769773840466,-500.0,0.00016431,2]
[404036146,1769773840475,-500.0,0.00016431,2]
[404036147,1769773840484,-500.0,0.00016431,2]
[404036148,1769773840494,-500.0,0.00016431,2]
[404036149,1769773840503,-500.0,0.00016431,2]
[404036150,1769773840512,-500.0,0.00016431,2]
[404036151,1769773840521,-500.0,0.00016431,2]
[404036152,1769773840530,-500.0,0.00016431,2]
[404036153,1769773840539,-302.26486696,0.00016431,2]
[404036154,1769773840548,-500.0,0.00016431,2]
[404036155,1769773840558,-500.0,0.00016431,2]
[404036157,1769773840567,-500.0,0.00016431,2]
[404036159,1769773840575,-422.47387411,0.00016431,2]
[404036161,1769773840585,-630.0,0.00016436,2]
[404036162,1769773840594,-2150.0,0.00016436,2]
[404036164,1769773840603,-1369.0,0.00016436,2]
[404036166,1769773840612,-346.6728634,0.00016556,2]
[404036168,1769773840621,-381.88566795,0.00016658,2]
[404036170,1769773840630,-509.418771,0.000169,2]
[404036319,1769773844456,-300.0,0.00016758,2]
[404036320,1769773844465,-177.26040614,0.00016758,2]
[404036321,1769773845140,-122.73959386,0.00016758,2]
[404036322,1769773845150,-300.0,0.00016758,2]
[404036323,1769773845160,-300.0,0.00016758,2]
[404036324,1769773845170,-300.0,0.00016758,2]
[404036325,1769773845179,-300.0,0.00016758,2]
[404036326,1769773845189,-22.44716885,0.00016758,2]
[404036328,1769773845200,-277.55283115,0.00016758,2]
[404036329,1769773845209,-300.0,0.00016758,2]
[404036330,1769773845219,-300.0,0.00016758,2]
[404036331,1769773845228,-11.971229,0.000169,2]
[404036333,1769773845237,-998.04740673,0.00017121,2]
[404036335,1769773845246,-183.82079243,0.00017382,2]
[404036336,1769773845256,-5263.00412606,0.00017459,2]
[404036346,1769773846405,-300.0,0.00016758,2]
[404036347,1769773846414,-300.0,0.00016758,2]
[404036348,1769773846425,-300.0,0.00016758,2]
[404036349,1769773846434,-419.9312044,0.00016961,2]
[404036350,1769773846444,-1596.10099338,0.00017459,2]
[404036382,1769774501383,536.0,0.0003,120]
[404036406,1769774636352,1000.0,0.0001,13]
[404036407,1769774636376,1000.0,0.0001,13]
[404036408,1769774636399,397.18421475,0.0001,13]
[404036425,1769774826133,-979.6721443,9.752e-05,2]
[404036426,1769774826156,-275.3169375,9.851e-05,2]
[404036427,1769774826180,-166.59044946,9.95e-05,2]
[404036428,1769774826204,-3.3799251,0.0001,2]
[404036458,1769775036985,-154.6700749,0.0001,2]
[404036459,1769775037004,-163.25864047,0.000109,2]
[404036460,1769775037015,-158.05,0.000118,2]
[404036461,1769775037024,-511.19171072,0.00012057,2]
[404036462,1769775037034,-5158.34218683,0.00012774,2]
[404036463,1769775037045,-192.64519576,0.000129,2]
[404036464,1769775037055,-378.71014232,0.00013213,2]
[404036465,1769775037065,-300.0,0.00013271,2]
[404036466,1769775037075,-178.51822719,0.00013273,2]
[404036467,1769775037087,-526.15004826,0.00013273,2]
[404036468,1769775037097,-158.05,0.000137,2]
[404036469,1769775037107,-6465.22790137,0.000137,2]
[404036470,1769775037120,-1781.20518151,0.000137,2]
[404036559,1769775156489,1096.0,0.0003,120]
[404036601,1769775626704,1000.0,0.0001,14]
[404036602,1769775626730,602.81578525,0.0001,14]
[404036603,1769775626753,492.40331363,0.0001,14]
[404036604,1769775635051,507.59668637,0.0001,10]
[404036611,1769775874442,6493.07897909,0.00034729,120]
[404036659,1769776232369,-164.67,0.0001,2]
[404036661,1769776232379,-560.0,0.0001,2]
[404036663,1769776232389,-167.17723783,0.0001055,2]
[404036665,1769776232399,-164.67,0.000122,2]
[404036667,1769776232408,-197.26914064,0.0001255,2]
[404036669,1769776232418,-207.95185693,0.00013327,2]
[404036671,1769776232427,-1041.66666667,0.0001374,2]
[404036673,1769776232437,-164.67,0.000145,2]
[404036675,1769776232447,-227.36104345,0.0001455,2]
[404036677,1769776232457,-382.5284904,0.00014955,2]
[404036679,1769776232466,-2176.70208937,0.00014962,2]
[404036680,1769776232476,-900.7769554,0.00015084,2]
[404036682,1769776232485,-2679.77286078,0.00015084,2]
[404036684,1769776232494,-160.78,0.000152,2]
[404036685,1769776232503,-395.240675,0.00015415,2]
[404036687,1769776232512,-158.05,0.000155,2]
[404036688,1769776232522,-300.0,0.00016359,2]
[404036690,1769776232531,-1008.4947996,0.0001636,2]
[404036691,1769776232540,-648.23216132,0.000164,2]
[404036693,1769776232552,-131.76783868,0.000164,2]
[404036695,1769776232561,-393.29973406,0.00016433,2]
[404036696,1769776232580,-238.09226594,0.00016433,2]
[404036697,1769776232593,-1154.57341707,0.00016433,2]
[404036698,1769776232605,-214.42658293,0.00016433,2]
[404036699,1769776232615,-2154.305,0.00016433,2]
[404036700,1769776232624,-536.76,0.00016433,2]
[404036701,1769776232633,-180.621,0.00016433,2]
[404036702,1769776232643,-418.0,0.00016433,2]
[404036703,1769776232652,-151.697065,0.00016433,2]
[404036704,1769776232662,-154.379739,0.00016433,2]
[404036705,1769776232671,-257.45294626,0.0001655,2]
[404036706,1769776232681,-187.78006525,0.00016589,2]
[404036707,1769776232690,-194.72792766,0.00016589,2]
[404036708,1769776232700,-201.93286099,0.00016589,2]
[404036709,1769776232709,-209.40437684,0.00016589,2]
[404036710,1769776232718,-217.15233878,0.00016589,2]
[404036711,1769776232727,-225.18697532,0.00016589,2]
[404036712,1769776232737,-233.51889341,0.00016589,2]
[404036713,1769776232746,-242.15909246,0.00016589,2]
[404036714,1769776232755,-304.20231426,0.00016589,2]
[404036715,1769776232765,-151.0,0.00016632,2]
[404036716,1769776232774,-150.0,0.00016642,2]
[404036717,1769776232783,-150.0,0.00016642,2]
[404036718,1769776232792,-419.9312044,0.00016758,2]
[404036719,1769776232801,-900.7769554,0.00016903,2]
[404036720,1769776232811,-151.0,0.00016963,2]
[404036721,1769776232820,-665.36493782,0.00017121,2]
[404036722,1769776232993,-451.34,0.00017121,2]
[404036723,1769776233007,-244.8933766,0.0001729,2]
[404036724,1769776233020,-158.05,0.000173,2]
[404036725,1769776233030,-1341.72045197,0.00017379,2]
[404036726,1769776233039,-424.42027779,0.00017469,2]
[404036727,1769776233048,-264.69766763,0.00017469,2]
[404036728,1769776233058,-500.0,0.00017469,2]
[404036729,1769776233068,-500.0,0.00017469,2]
[404036730,1769776233077,-82.45738147,0.00017469,2]
[404036731,1769776233089,-417.54261853,0.00017469,2]